[Event "Titled Tuesday Blitz January 31 Early 2023"]
[White "Kiseleva, Arina"]
[Black "Rodriguez, Santiago"]
[WhiteFideId "4164989"]
[BlackFideId "3000591"]
[WhiteElo "1962"]
[BlackElo "2252"]
[Result "0-1"]
[Round "02"]
[TimeControl "180+2"]
[Date "2023.01.31"]
[WhiteClock "0:00:02"]
[BlackClock "0:00:26"]

1. d4 {[%clk 0:02:52]}  Nf6 {[%clk 0:02:47]} 2. Nf3 {[%clk 0:02:51]}  e6 {[%clk 0:02:47]} 3. e3 {[%clk 0:02:51]}  d5 {[%clk 0:02:47]} 4. Bd3 {[%clk 0:02:52]}  c5 {[%clk 0:02:47]} 5. O-O {[%clk 0:02:52]}  Nc6 {[%clk 0:02:48]} 6. a3 {[%clk 0:02:50]}  Bd6 {[%clk 0:02:47]} 7. dxc5 {[%clk 0:02:50]}  Bxc5 {[%clk 0:02:48]} 8. b4 {[%clk 0:02:51]}  Bd6 {[%clk 0:02:47]} 9. Bb2 {[%clk 0:02:51]}  O-O {[%clk 0:02:43]} 10. b5 {[%clk 0:02:50]}  Ne7 {[%clk 0:02:41]} 11. Ne5 {[%clk 0:02:50]}  Ng6 {[%clk 0:02:41]} 12. Nxg6 {[%clk 0:02:32]}  hxg6 {[%clk 0:02:40]} 13. Nd2 {[%clk 0:02:33]}  e5 {[%clk 0:02:39]} 14. c4 {[%clk 0:02:26]}  e4 {[%clk 0:02:19]} 15. Be2 {[%clk 0:02:26]}  Be6 {[%clk 0:02:12]} 16. cxd5 {[%clk 0:02:22]}  Bxd5 {[%clk 0:02:11]} 17. Nc4 {[%clk 0:02:15]}  Bb8 {[%clk 0:01:55]} 18. Qd4 {[%clk 0:02:06]}  Qc7 {[%clk 0:01:43]} 19. g3 {[%clk 0:02:01]}  Be6 {[%clk 0:01:39]} 20. Rac1 {[%clk 0:01:42]}  Rd8 {[%clk 0:01:29]} 21. Qc3 {[%clk 0:01:21]}  Qc5 {[%clk 0:01:24]} 22. a4 {[%clk 0:01:19]}  Qg5 {[%clk 0:01:23]} 23. h4 {[%clk 0:01:14]}  Qf5 {[%clk 0:01:19]} 24. Rfd1 {[%clk 0:01:07]}  Bc7 {[%clk 0:01:10]} 25. Ne5 {[%clk 0:00:56]}  Bd6 {[%clk 0:00:51]} 26. Rxd6 {[%clk 0:00:09]}  Rxd6 {[%clk 0:00:52]} 27. Qc7 {[%clk 0:00:09]}  Rd2 {[%clk 0:00:47]} 28. Rc2 {[%clk 0:00:07]}  Rxc2 {[%clk 0:00:41]} 29. Qxc2 {[%clk 0:00:08]}  Rc8 {[%clk 0:00:42]} 30. Qd2 {[%clk 0:00:07]}  g5 {[%clk 0:00:38]} 31. hxg5 {[%clk 0:00:06]}  Qxg5 {[%clk 0:00:39]} 32. Qd4 {[%clk 0:00:05]}  Rc2 {[%clk 0:00:31]} 33. Bf1 {[%clk 0:00:03]}  Qh5 {[%clk 0:00:27]} 34. Qd8+ {[%clk 0:00:02]}  Kh7 {[%clk 0:00:26]} 0-1


[Site "https://www.chess.com"]

[Event "Titled Tuesday Blitz January 31 Early 2023"]
[White "Gatterer, Florian"]
[Black "Ferguson, Randal"]
[WhiteFideId "811688"]
[BlackFideId "30903106"]
[WhiteElo "2170"]
[BlackElo "2058"]
[Result "1-0"]
[Round "02"]
[TimeControl "180+2"]
[Date "2023.01.31"]
[WhiteClock "0:00:44"]
[BlackClock "0:00:02"]

1. b3 {[%clk 0:02:58]}  f5 {[%clk 0:02:58]} 2. Bb2 {[%clk 0:02:53]}  Nf6 {[%clk 0:02:58]} 3. g3 {[%clk 0:02:53]}  g6 {[%clk 0:02:58]} 4. Bg2 {[%clk 0:02:54]}  Bg7 {[%clk 0:02:58]} 5. c4 {[%clk 0:02:53]}  d6 {[%clk 0:02:59]} 6. d4 {[%clk 0:02:52]}  O-O {[%clk 0:02:59]} 7. Nd2 {[%clk 0:02:53]}  c6 {[%clk 0:02:57]} 8. Ngf3 {[%clk 0:02:52]}  a5 {[%clk 0:02:51]} 9. O-O {[%clk 0:02:52]}  Na6 {[%clk 0:02:52]} 10. a3 {[%clk 0:02:50]}  Ne4 {[%clk 0:02:40]} 11. Ne1 {[%clk 0:02:43]}  d5 {[%clk 0:02:35]} 12. Nd3 {[%clk 0:02:43]}  e6 {[%clk 0:02:13]} 13. e3 {[%clk 0:02:42]}  g5 {[%clk 0:02:04]} 14. f3 {[%clk 0:02:40]}  Nf6 {[%clk 0:01:51]} 15. Ne5 {[%clk 0:02:40]}  Qe8 {[%clk 0:01:40]} 16. f4 {[%clk 0:02:37]}  gxf4 {[%clk 0:01:37]} 17. exf4 {[%clk 0:02:30]}  Ne4 {[%clk 0:01:34]} 18. Rc1 {[%clk 0:02:21]}  Bd7 {[%clk 0:01:33]} 19. Ndf3 {[%clk 0:02:17]}  Rc8 {[%clk 0:01:21]} 20. c5 {[%clk 0:02:15]}  Nb8 {[%clk 0:01:07]} 21. Qe2 {[%clk 0:02:12]}  Qh5 {[%clk 0:00:59]} 22. Rfe1 {[%clk 0:02:06]}  Be8 {[%clk 0:00:53]} 23. Nd2 {[%clk 0:02:01]}  Qh6 {[%clk 0:00:51]} 24. Nxe4 {[%clk 0:01:57]}  fxe4 {[%clk 0:00:49]} 25. b4 {[%clk 0:01:50]}  axb4 {[%clk 0:00:47]} 26. axb4 {[%clk 0:01:50]}  Bh5 {[%clk 0:00:42]} 27. Qe3 {[%clk 0:01:50]}  Bxe5 {[%clk 0:00:34]} 28. dxe5 {[%clk 0:01:49]}  Na6 {[%clk 0:00:20]} 29. Bc3 {[%clk 0:01:28]}  Bg4 {[%clk 0:00:18]} 30. Rf1 {[%clk 0:01:23]}  Rf7 {[%clk 0:00:18]} 31. Ra1 {[%clk 0:01:22]}  Rcf8 {[%clk 0:00:17]} 32. Bd2 {[%clk 0:01:10]}  Nc7 {[%clk 0:00:14]} 33. Qf2 {[%clk 0:01:04]}  Bf5 {[%clk 0:00:11]} 34. Be3 {[%clk 0:01:02]}  Qh5 {[%clk 0:00:11]} 35. Rfe1 {[%clk 0:00:55]}  Nb5 {[%clk 0:00:11]} 36. Bf1 {[%clk 0:00:52]}  Nc3 {[%clk 0:00:06]} 37. Bd4 {[%clk 0:00:49]}  Nb5 {[%clk 0:00:04]} 38. Bb2 {[%clk 0:00:49]}  Bg4 {[%clk 0:00:03]} 39. Be2 {[%clk 0:00:46]}  Bf3 {[%clk 0:00:01]} 40. Bxf3 {[%clk 0:00:44]}  exf3 {[%clk 0:00:02]} 41. Rf1 {[%clk 0:00:44]} 1-0


[Site "https://www.chess.com"]

[Event "Titled Tuesday Blitz January 31 Early 2023"]
[White "Fernandez Garcia, Gumersindo"]
[Black "Adithya A Chullikkad"]
[WhiteFideId "24516740"]
[BlackFideId "45078734"]
[WhiteElo "2160"]
[BlackElo "2259"]
[Result "1-0"]
[Round "02"]
[TimeControl "180+2"]
[Date "2023.01.31"]
[WhiteClock "0:00:24"]
[BlackClock "0:00:06"]

1. e4 {[%clk 0:03:00]}  c5 {[%clk 0:02:58]} 2. a3 {[%clk 0:02:58]}  d6 {[%clk 0:02:58]} 3. b4 {[%clk 0:02:57]}  cxb4 {[%clk 0:02:58]} 4. axb4 {[%clk 0:02:58]}  Nf6 {[%clk 0:02:58]} 5. d3 {[%clk 0:02:56]}  e6 {[%clk 0:02:56]} 6. Nf3 {[%clk 0:02:54]}  Be7 {[%clk 0:02:56]} 7. g3 {[%clk 0:02:52]}  O-O {[%clk 0:02:57]} 8. Bg2 {[%clk 0:02:52]}  Nfd7 {[%clk 0:02:50]} 9. O-O {[%clk 0:02:50]}  Bf6 {[%clk 0:02:50]} 10. Ra2 {[%clk 0:02:34]}  Nc6 {[%clk 0:02:48]} 11. b5 {[%clk 0:02:34]}  Nd4 {[%clk 0:02:48]} 12. c4 {[%clk 0:02:14]}  Nc5 {[%clk 0:02:36]} 13. Be3 {[%clk 0:02:04]}  Nxf3+ {[%clk 0:02:10]} 14. Bxf3 {[%clk 0:02:04]}  a6 {[%clk 0:02:04]} 15. d4 {[%clk 0:01:59]}  Nd7 {[%clk 0:01:54]} 16. Nc3 {[%clk 0:01:53]}  Nb6 {[%clk 0:01:49]} 17. Qb3 {[%clk 0:01:49]}  axb5 {[%clk 0:01:34]} 18. Rxa8 {[%clk 0:01:33]}  Nxa8 {[%clk 0:01:30]} 19. Nxb5 {[%clk 0:01:32]}  Nc7 {[%clk 0:01:22]} 20. Rb1 {[%clk 0:01:23]}  Nxb5 {[%clk 0:01:21]} 21. Qxb5 {[%clk 0:01:24]}  Qc7 {[%clk 0:01:19]} 22. Bg2 {[%clk 0:01:20]}  h6 {[%clk 0:01:13]} 23. f4 {[%clk 0:01:20]}  Bd8 {[%clk 0:01:02]} 24. e5 {[%clk 0:01:18]}  b6 {[%clk 0:00:54]} 25. Ra1 {[%clk 0:00:57]}  Bd7 {[%clk 0:00:52]} 26. Qb4 {[%clk 0:00:51]}  dxe5 {[%clk 0:00:45]} 27. fxe5 {[%clk 0:00:51]}  Re8 {[%clk 0:00:45]} 28. Qd6 {[%clk 0:00:32]}  Qxd6 {[%clk 0:00:26]} 29. exd6 {[%clk 0:00:33]}  Bg5 {[%clk 0:00:17]} 30. Bxg5 {[%clk 0:00:32]}  hxg5 {[%clk 0:00:18]} 31. c5 {[%clk 0:00:32]}  bxc5 {[%clk 0:00:17]} 32. dxc5 {[%clk 0:00:32]}  Rc8 {[%clk 0:00:18]} 33. Rc1 {[%clk 0:00:30]}  Kf8 {[%clk 0:00:07]} 34. c6 {[%clk 0:00:30]}  e5 {[%clk 0:00:06]} 35. cxd7 {[%clk 0:00:24]} 1-0


[Site "https://www.chess.com"]

[Event "Titled Tuesday Blitz January 31 Early 2023"]
[White "Bongo Akanga Ndjila, Barthelemy"]
[Black "Gheorghiu, Calin"]
[WhiteFideId "10609431"]
[BlackFideId "1200305"]
[WhiteElo "1824"]
[BlackElo "2313"]
[Result "0-1"]
[Round "02"]
[TimeControl "180+2"]
[Date "2023.01.31"]
[WhiteClock "0:00:38"]
[BlackClock "0:00:57"]

1. d4 {[%clk 0:02:40]}  Nf6 {[%clk 0:02:59]} 2. Nf3 {[%clk 0:02:35]}  d5 {[%clk 0:02:58]} 3. Bg5 {[%clk 0:02:33]}  e6 {[%clk 0:02:57]} 4. e3 {[%clk 0:02:32]}  Nbd7 {[%clk 0:02:56]} 5. Nbd2 {[%clk 0:02:32]}  Bd6 {[%clk 0:02:55]} 6. Bd3 {[%clk 0:02:31]}  b6 {[%clk 0:02:54]} 7. c3 {[%clk 0:02:30]}  Bb7 {[%clk 0:02:54]} 8. a4 {[%clk 0:02:30]}  a6 {[%clk 0:02:53]} 9. a5 {[%clk 0:02:12]}  c5 {[%clk 0:02:40]} 10. axb6 {[%clk 0:02:10]}  Qxb6 {[%clk 0:02:37]} 11. Qb1 {[%clk 0:02:07]}  h6 {[%clk 0:02:32]} 12. Bh4 {[%clk 0:02:06]}  O-O {[%clk 0:02:31]} 13. O-O {[%clk 0:02:05]}  a5 {[%clk 0:02:19]} 14. Re1 {[%clk 0:01:57]}  a4 {[%clk 0:02:13]} 15. Bg3 {[%clk 0:01:55]}  Bxg3 {[%clk 0:02:08]} 16. hxg3 {[%clk 0:01:54]}  Rfb8 {[%clk 0:02:04]} 17. Bc2 {[%clk 0:01:53]}  Bc6 {[%clk 0:02:03]} 18. b3 {[%clk 0:01:49]}  axb3 {[%clk 0:01:40]} 19. Rxa8 {[%clk 0:01:48]}  Rxa8 {[%clk 0:01:39]} 20. Qxb3 {[%clk 0:01:43]}  Qa5 {[%clk 0:01:27]} 21. Qb2 {[%clk 0:01:37]}  Rb8 {[%clk 0:01:20]} 22. Qa1 {[%clk 0:01:36]}  Qxa1 {[%clk 0:01:17]} 23. Rxa1 {[%clk 0:01:36]}  Rb2 {[%clk 0:01:18]} 24. Ba4 {[%clk 0:01:26]}  Bxa4 {[%clk 0:01:14]} 25. Rxa4 {[%clk 0:01:27]}  c4 {[%clk 0:01:13]} 26. Kf1 {[%clk 0:01:22]}  g5 {[%clk 0:01:11]} 27. Ke2 {[%clk 0:01:21]}  g4 {[%clk 0:01:09]} 28. Nh2 {[%clk 0:01:18]}  Ne4 {[%clk 0:01:08]} 29. Nf1 {[%clk 0:01:18]}  Ndf6 {[%clk 0:01:04]} 30. Ra8+ {[%clk 0:01:12]}  Kg7 {[%clk 0:01:04]} 31. Ra3 {[%clk 0:01:12]}  Nxd2 {[%clk 0:01:02]} 32. Nxd2 {[%clk 0:01:11]}  Ne4 {[%clk 0:01:02]} 33. f3 {[%clk 0:00:58]}  Nxd2 {[%clk 0:01:02]} 34. Kd1 {[%clk 0:00:44]}  gxf3 {[%clk 0:00:58]} 35. Kc1 {[%clk 0:00:41]}  fxg2 {[%clk 0:00:57]} 36. Kxb2 {[%clk 0:00:39]}  g1=Q {[%clk 0:00:57]} 37. Kc2 {[%clk 0:00:39]}  Qb1+ {[%clk 0:00:56]} 38. Kxd2 {[%clk 0:00:38]}  Qb2+ {[%clk 0:00:57]} 39. Ke1 {[%clk 0:00:37]}  Qxa3 {[%clk 0:00:58]} 40. Kf2 {[%clk 0:00:38]}  Qxc3 {[%clk 0:00:57]} 0-1


[Site "https://www.chess.com"]

[Event "Titled Tuesday Blitz January 31 Early 2023"]
[White "Kakulidis, Ellen"]
[Black "Begunov, Konstantin"]
[WhiteFideId "1444972"]
[BlackFideId "4118510"]
[WhiteElo "2046"]
[BlackElo "2325"]
[Result "0-1"]
[Round "02"]
[TimeControl "180+2"]
[Date "2023.01.31"]
[WhiteClock "0:00:08"]
[BlackClock "0:00:49"]

1. d4 {[%clk 0:03:00]}  d5 {[%clk 0:02:58]} 2. c4 {[%clk 0:03:00]}  c6 {[%clk 0:02:59]} 3. cxd5 {[%clk 0:02:53]}  cxd5 {[%clk 0:02:59]} 4. Nf3 {[%clk 0:02:53]}  Nf6 {[%clk 0:03:00]} 5. Nc3 {[%clk 0:02:53]}  Nc6 {[%clk 0:03:00]} 6. e3 {[%clk 0:02:53]}  a6 {[%clk 0:03:01]} 7. Ne5 {[%clk 0:02:48]}  e6 {[%clk 0:03:00]} 8. f4 {[%clk 0:02:47]}  Bd6 {[%clk 0:02:57]} 9. Bd3 {[%clk 0:02:46]}  Bd7 {[%clk 0:02:55]} 10. g4 {[%clk 0:02:44]}  h6 {[%clk 0:02:48]} 11. Qf3 {[%clk 0:02:14]}  Ng8 {[%clk 0:02:41]} 12. h4 {[%clk 0:02:11]}  Nb4 {[%clk 0:02:16]} 13. Bb1 {[%clk 0:02:10]}  Ne7 {[%clk 0:02:14]} 14. a3 {[%clk 0:01:56]}  Nbc6 {[%clk 0:02:14]} 15. Kf2 {[%clk 0:01:50]}  Na5 {[%clk 0:02:04]} 16. Bc2 {[%clk 0:01:47]}  Qb6 {[%clk 0:01:56]} 17. Kg3 {[%clk 0:01:40]}  Nb3 {[%clk 0:01:52]} 18. h5 {[%clk 0:00:47]}  Nxa1 {[%clk 0:01:49]} 19. Nxd7 {[%clk 0:00:36]}  Kxd7 {[%clk 0:01:47]} 20. Ba4+ {[%clk 0:00:36]}  Kd8 {[%clk 0:01:38]} 21. b4 {[%clk 0:00:29]}  a5 {[%clk 0:01:05]} 22. Nb5 {[%clk 0:00:18]}  axb4 {[%clk 0:01:00]} 23. Nxd6 {[%clk 0:00:18]}  Qxd6 {[%clk 0:00:58]} 24. Bb5 {[%clk 0:00:18]}  Nc2 {[%clk 0:00:52]} 25. Rh2 {[%clk 0:00:16]}  Nxa3 {[%clk 0:00:51]} 26. Bd3 {[%clk 0:00:08]}  Nc4 {[%clk 0:00:49]} 0-1


[Site "https://www.chess.com"]

[Event "Titled Tuesday Blitz January 31 Early 2023"]
[White "Wickramasinghe, Minethma Lasandi"]
[Black "Wahedi, Ahmad Siar"]
[WhiteFideId "9966170"]
[BlackFideId "4651260"]
[WhiteElo "1483"]
[BlackElo "2274"]
[Result "0-1"]
[Round "02"]
[TimeControl "180+2"]
[Date "2023.01.31"]
[WhiteClock "0:00:16"]
[BlackClock "0:00:24"]

1. d4 {[%clk 0:03:00]}  d5 {[%clk 0:02:59]} 2. Bf4 {[%clk 0:03:00]}  Nf6 {[%clk 0:02:59]} 3. Nf3 {[%clk 0:02:58]}  c5 {[%clk 0:02:59]} 4. c3 {[%clk 0:02:58]}  Nc6 {[%clk 0:02:58]} 5. e3 {[%clk 0:02:57]}  e6 {[%clk 0:02:54]} 6. Bd3 {[%clk 0:02:56]}  Bd6 {[%clk 0:02:54]} 7. Bg3 {[%clk 0:02:57]}  Qc7 {[%clk 0:02:54]} 8. Nbd2 {[%clk 0:02:56]}  c4 {[%clk 0:02:52]} 9. Bc2 {[%clk 0:02:44]}  O-O {[%clk 0:02:49]} 10. a4 {[%clk 0:02:40]}  e5 {[%clk 0:02:48]} 11. dxe5 {[%clk 0:02:30]}  Nxe5 {[%clk 0:02:48]} 12. Nd4 {[%clk 0:02:29]}  a6 {[%clk 0:02:40]} 13. N2f3 {[%clk 0:02:26]}  Bg4 {[%clk 0:02:37]} 14. Bh4 {[%clk 0:02:07]}  Ne4 {[%clk 0:02:26]} 15. h3 {[%clk 0:01:52]}  Bd7 {[%clk 0:02:22]} 16. O-O {[%clk 0:01:35]}  Rfe8 {[%clk 0:02:06]} 17. Ng5 {[%clk 0:01:12]}  Nxg5 {[%clk 0:01:56]} 18. Bxg5 {[%clk 0:01:13]}  h6 {[%clk 0:01:56]} 19. Bf4 {[%clk 0:01:11]}  Rad8 {[%clk 0:01:55]} 20. a5 {[%clk 0:00:59]}  Bc8 {[%clk 0:01:52]} 21. Ba4 {[%clk 0:00:58]}  Re7 {[%clk 0:01:49]} 22. Bc2 {[%clk 0:00:50]}  Nc6 {[%clk 0:01:33]} 23. Nf5 {[%clk 0:00:49]}  Bxf5 {[%clk 0:01:30]} 24. Bxf5 {[%clk 0:00:50]}  Bxf4 {[%clk 0:01:28]} 25. exf4 {[%clk 0:00:49]}  Qxf4 {[%clk 0:01:28]} 26. Bc2 {[%clk 0:00:47]}  d4 {[%clk 0:01:27]} 27. cxd4 {[%clk 0:00:43]}  Nxd4 {[%clk 0:01:27]} 28. Qb1 {[%clk 0:00:40]}  Re2 {[%clk 0:01:18]} 29. Bd1 {[%clk 0:00:34]}  Rd2 {[%clk 0:01:12]} 30. Ra3 {[%clk 0:00:33]}  Qf5 {[%clk 0:00:57]} 31. Qa1 {[%clk 0:00:27]}  Qd5 {[%clk 0:00:48]} 32. Qc1 {[%clk 0:00:25]}  Ne6 {[%clk 0:00:41]} 33. Bf3 {[%clk 0:00:23]}  Qd7 {[%clk 0:00:41]} 34. Qxc4 {[%clk 0:00:21]}  Rxb2 {[%clk 0:00:40]} 35. Rc1 {[%clk 0:00:19]}  Rb5 {[%clk 0:00:39]} 36. Qc3 {[%clk 0:00:17]}  Rc5 {[%clk 0:00:36]} 37. Qb2 {[%clk 0:00:17]}  Rdc8 {[%clk 0:00:35]} 38. Rac3 {[%clk 0:00:16]}  Rxc3 {[%clk 0:00:34]} 39. Rxc3 {[%clk 0:00:17]}  Rxc3 {[%clk 0:00:34]} 40. Qxc3 {[%clk 0:00:17]}  g6 {[%clk 0:00:33]} 41. Qb4 {[%clk 0:00:17]}  Nd8 {[%clk 0:00:31]} 42. Qb6 {[%clk 0:00:17]}  Kg7 {[%clk 0:00:31]} 43. Qb2+ {[%clk 0:00:16]}  Kh7 {[%clk 0:00:29]} 44. Bg4 {[%clk 0:00:17]}  Qd5 {[%clk 0:00:27]} 45. Bf3 {[%clk 0:00:17]}  Qxa5 {[%clk 0:00:27]} 46. Bxb7 {[%clk 0:00:16]}  Qe1+ {[%clk 0:00:26]} 47. Kh2 {[%clk 0:00:16]}  Nxb7 {[%clk 0:00:26]} 48. Qxb7 {[%clk 0:00:17]}  Qxf2 {[%clk 0:00:26]} 49. Qxa6 {[%clk 0:00:17]}  Qf4+ {[%clk 0:00:26]} 50. Kg1 {[%clk 0:00:17]}  h5 {[%clk 0:00:26]} 51. Qa2 {[%clk 0:00:16]}  h4 {[%clk 0:00:26]} 52. Qe2 {[%clk 0:00:16]}  g5 {[%clk 0:00:25]} 53. Qc2+ {[%clk 0:00:16]}  Kg7 {[%clk 0:00:25]} 54. Qc3+ {[%clk 0:00:16]}  Kg6 {[%clk 0:00:24]} 55. Qd3+ {[%clk 0:00:16]}  Kf6 {[%clk 0:00:25]} 56. Qd6+ {[%clk 0:00:16]}  Qxd6 {[%clk 0:00:24]} 0-1


[Site "https://www.chess.com"]

[Event "Titled Tuesday Blitz January 31 Early 2023"]
[White "Belov, Alexei"]
[Black "Mohammadian, Mohammad"]
[WhiteFideId "4128206"]
[BlackFideId "12566055"]
[WhiteElo "2421"]
[BlackElo "1398"]
[Result "1-0"]
[Round "02"]
[TimeControl "180+2"]
[Date "2023.01.31"]
[WhiteClock "0:01:45"]
[BlackClock "0:00:42"]

1. e4 {[%clk 0:03:00]}  e5 {[%clk 0:02:59]} 2. Nf3 {[%clk 0:03:00]}  Nc6 {[%clk 0:02:58]} 3. Bb5 {[%clk 0:03:01]}  a6 {[%clk 0:02:57]} 4. Ba4 {[%clk 0:03:01]}  Nf6 {[%clk 0:02:56]} 5. d4 {[%clk 0:03:01]}  exd4 {[%clk 0:02:51]} 6. O-O {[%clk 0:03:01]}  d6 {[%clk 0:02:48]} 7. Nxd4 {[%clk 0:02:57]}  Bd7 {[%clk 0:02:46]} 8. Bxc6 {[%clk 0:02:57]}  bxc6 {[%clk 0:02:44]} 9. Qf3 {[%clk 0:02:57]}  Be7 {[%clk 0:02:44]} 10. e5 {[%clk 0:02:57]}  dxe5 {[%clk 0:02:39]} 11. Nxc6 {[%clk 0:02:57]}  Bxc6 {[%clk 0:02:19]} 12. Qxc6+ {[%clk 0:02:56]}  Nd7 {[%clk 0:02:19]} 13. Rd1 {[%clk 0:02:47]}  Bd6 {[%clk 0:02:19]} 14. Nc3 {[%clk 0:02:21]}  O-O {[%clk 0:02:15]} 15. Ne4 {[%clk 0:02:19]}  Nf6 {[%clk 0:01:44]} 16. Bg5 {[%clk 0:02:09]}  h6 {[%clk 0:01:38]} 17. Nxf6+ {[%clk 0:01:57]}  gxf6 {[%clk 0:01:35]} 18. Bxh6 {[%clk 0:01:58]}  Re8 {[%clk 0:01:32]} 19. Qf3 {[%clk 0:01:54]}  f5 {[%clk 0:00:42]} 20. Qg3+ {[%clk 0:01:45]} 1-0


[Site "https://www.chess.com"]

[Event "Titled Tuesday Blitz January 31 Early 2023"]
[White "Noshin, Anjum"]
[Black "Jimenez, Joaquin"]
[WhiteFideId "10218564"]
[BlackFideId "109860"]
[WhiteElo "1946"]
[BlackElo "2195"]
[Result "0-1"]
[Round "02"]
[TimeControl "180+2"]
[Date "2023.01.31"]
[WhiteClock "0:00:01"]
[BlackClock "0:00:36"]

1. e4 {[%clk 0:03:00]}  e6 {[%clk 0:02:59]} 2. d4 {[%clk 0:02:59]}  d5 {[%clk 0:02:58]} 3. Nc3 {[%clk 0:02:56]}  Bb4 {[%clk 0:02:57]} 4. e5 {[%clk 0:02:55]}  c5 {[%clk 0:02:56]} 5. a3 {[%clk 0:02:56]}  Bxc3+ {[%clk 0:02:56]} 6. bxc3 {[%clk 0:02:55]}  Ne7 {[%clk 0:02:57]} 7. Qg4 {[%clk 0:02:52]}  Nf5 {[%clk 0:02:56]} 8. Bd3 {[%clk 0:02:42]}  h5 {[%clk 0:02:56]} 9. Qf3 {[%clk 0:02:30]}  cxd4 {[%clk 0:02:53]} 10. Bxf5 {[%clk 0:02:29]}  exf5 {[%clk 0:02:53]} 11. cxd4 {[%clk 0:02:30]}  Nc6 {[%clk 0:02:53]} 12. Ne2 {[%clk 0:02:28]}  Be6 {[%clk 0:02:47]} 13. O-O {[%clk 0:02:27]}  Qh4 {[%clk 0:02:42]} 14. Rb1 {[%clk 0:02:13]}  b6 {[%clk 0:02:38]} 15. Bf4 {[%clk 0:01:33]}  Rc8 {[%clk 0:02:29]} 16. h3 {[%clk 0:01:29]}  Qe7 {[%clk 0:02:14]} 17. Rfd1 {[%clk 0:01:13]}  g5 {[%clk 0:02:12]} 18. Bh2 {[%clk 0:00:46]}  g4 {[%clk 0:02:09]} 19. Qd3 {[%clk 0:00:39]}  Rg8 {[%clk 0:02:03]} 20. Nf4 {[%clk 0:00:32]}  h4 {[%clk 0:01:59]} 21. Nxe6 {[%clk 0:00:27]}  fxe6 {[%clk 0:01:57]} 22. hxg4 {[%clk 0:00:18]}  Rxg4 {[%clk 0:01:53]} 23. f4 {[%clk 0:00:15]}  Kd7 {[%clk 0:01:46]} 24. Rd2 {[%clk 0:00:14]}  Rcg8 {[%clk 0:01:45]} 25. Kh1 {[%clk 0:00:13]}  Kc7 {[%clk 0:01:39]} 26. c4 {[%clk 0:00:12]}  Qd7 {[%clk 0:01:26]} 27. c5 {[%clk 0:00:11]}  Rb8 {[%clk 0:01:18]} 28. cxb6+ {[%clk 0:00:10]}  Rxb6 {[%clk 0:01:19]} 29. Rc1 {[%clk 0:00:09]}  Kb7 {[%clk 0:01:17]} 30. Rdc2 {[%clk 0:00:08]}  Rg8 {[%clk 0:01:08]} 31. Qf3 {[%clk 0:00:07]}  Rc8 {[%clk 0:01:06]} 32. Qf2 {[%clk 0:00:06]}  Qd8 {[%clk 0:00:56]} 33. Rc3 {[%clk 0:00:06]}  Qe7 {[%clk 0:00:46]} 34. Bg1 {[%clk 0:00:06]}  Rg8 {[%clk 0:00:42]} 35. Rh3 {[%clk 0:00:05]}  Rg4 {[%clk 0:00:42]} 36. Rhc3 {[%clk 0:00:03]}  Qh7 {[%clk 0:00:38]} 37. Kh2 {[%clk 0:00:01]}  Rg3 {[%clk 0:00:36]} 0-1


[Site "https://www.chess.com"]

[Event "Titled Tuesday Blitz January 31 Early 2023"]
[White "Nakamura, Hikaru"]
[Black "Bartel, Mateusz"]
[WhiteFideId "2016192"]
[BlackFideId "1112635"]
[WhiteElo "2775"]
[BlackElo "2609"]
[Result "1-0"]
[Round "03"]
[TimeControl "180+2"]
[Date "2023.01.31"]
[WhiteClock "0:00:51"]
[BlackClock "0:00:17"]

1. Nf3 {[%clk 0:03:00]}  d5 {[%clk 0:02:59]} 2. g3 {[%clk 0:03:00]}  Bf5 {[%clk 0:02:58]} 3. Bg2 {[%clk 0:03:00]}  e6 {[%clk 0:02:56]} 4. Nh4 {[%clk 0:03:00]}  Bg4 {[%clk 0:02:53]} 5. d3 {[%clk 0:02:59]}  Be7 {[%clk 0:02:50]} 6. h3 {[%clk 0:02:59]}  Bh5 {[%clk 0:02:50]} 7. g4 {[%clk 0:02:56]}  Bxh4 {[%clk 0:02:41]} 8. gxh5 {[%clk 0:02:56]}  h6 {[%clk 0:02:42]} 9. Nd2 {[%clk 0:02:54]}  Nc6 {[%clk 0:02:41]} 10. c4 {[%clk 0:02:53]}  Nge7 {[%clk 0:02:39]} 11. e3 {[%clk 0:02:46]}  Nf5 {[%clk 0:02:09]} 12. O-O {[%clk 0:02:41]}  dxc4 {[%clk 0:01:57]} 13. d4 {[%clk 0:02:34]}  O-O {[%clk 0:01:57]} 14. Nxc4 {[%clk 0:02:31]}  Bf6 {[%clk 0:01:57]} 15. Qg4 {[%clk 0:02:29]}  Nfe7 {[%clk 0:01:49]} 16. Kh1 {[%clk 0:02:25]}  a5 {[%clk 0:01:42]} 17. Rd1 {[%clk 0:02:09]}  a4 {[%clk 0:01:41]} 18. Bd2 {[%clk 0:02:00]}  Kh8 {[%clk 0:01:35]} 19. Bc3 {[%clk 0:01:53]}  Nd5 {[%clk 0:01:22]} 20. e4 {[%clk 0:01:53]}  Nxc3 {[%clk 0:01:22]} 21. bxc3 {[%clk 0:01:53]}  Na5 {[%clk 0:01:00]} 22. Ne3 {[%clk 0:01:47]}  Bh4 {[%clk 0:00:57]} 23. f4 {[%clk 0:01:35]}  b5 {[%clk 0:00:57]} 24. e5 {[%clk 0:01:25]}  Rb8 {[%clk 0:00:55]} 25. d5 {[%clk 0:01:26]}  Qe7 {[%clk 0:00:53]} 26. dxe6 {[%clk 0:01:23]}  fxe6 {[%clk 0:00:53]} 27. Be4 {[%clk 0:01:23]}  g5 {[%clk 0:00:33]} 28. hxg6 {[%clk 0:01:20]}  Kg7 {[%clk 0:00:33]} 29. f5 {[%clk 0:01:16]}  exf5 {[%clk 0:00:23]} 30. Nxf5+ {[%clk 0:01:15]}  Rxf5 {[%clk 0:00:24]} 31. Qxf5 {[%clk 0:01:12]}  Rf8 {[%clk 0:00:23]} 32. Rd7 {[%clk 0:01:09]}  Rxf5 {[%clk 0:00:23]} 33. Rxe7+ {[%clk 0:01:09]}  Bxe7 {[%clk 0:00:24]} 34. Bxf5 {[%clk 0:01:09]}  Nc4 {[%clk 0:00:24]} 35. Bd3 {[%clk 0:01:05]}  Nxe5 {[%clk 0:00:24]} 36. Bxb5 {[%clk 0:01:06]}  a3 {[%clk 0:00:24]} 37. Re1 {[%clk 0:01:06]}  Bd6 {[%clk 0:00:24]} 38. Be8 {[%clk 0:01:06]}  Nd3 {[%clk 0:00:19]} 39. Re3 {[%clk 0:00:58]}  Nf4 {[%clk 0:00:19]} 40. h4 {[%clk 0:00:58]}  h5 {[%clk 0:00:20]} 41. Bf7 {[%clk 0:00:54]}  Kf6 {[%clk 0:00:19]} 42. Re8 {[%clk 0:00:53]}  Nxg6 {[%clk 0:00:18]} 43. Bxg6 {[%clk 0:00:53]}  Kxg6 {[%clk 0:00:19]} 44. Kg2 {[%clk 0:00:52]}  Kf5 {[%clk 0:00:18]} 45. Kf3 {[%clk 0:00:52]}  Be5 {[%clk 0:00:18]} 46. c4 {[%clk 0:00:53]}  Bf6 {[%clk 0:00:19]} 47. Ra8 {[%clk 0:00:52]}  Bxh4 {[%clk 0:00:18]} 48. Ra5+ {[%clk 0:00:52]}  Ke6 {[%clk 0:00:18]} 49. Rxa3 {[%clk 0:00:52]}  Be7 {[%clk 0:00:17]} 50. Ra5 {[%clk 0:00:52]}  c5 {[%clk 0:00:17]} 51. Ke4 {[%clk 0:00:52]}  h4 {[%clk 0:00:17]} 52. Ra8 {[%clk 0:00:50]}  Bf6 {[%clk 0:00:17]} 53. Ra6+ {[%clk 0:00:50]}  Kf7 {[%clk 0:00:17]} 54. Kf5 {[%clk 0:00:51]} 1-0


[Site "https://www.chess.com"]